bitfinex/quotes_SOLUSD_20240620
["timestamp","ask_amount","ask_price","bid_price","bid_amount"]
[1718890892966,20.0,136.15,136.05,6.1541]
[1718890893145,18.3626,136.15,136.07,7.3491]
[1718890893349,7.3464,136.12,136.06,7.3493]
[1718890893550,7.347,136.11,136.05,13.5042]
[1718890893744,7.3466,136.12,136.05,6.1541]
[1718890893966,20.0,136.14,136.05,13.5043]
[1718890894168,7.3472,136.11,136.05,13.5041]
[1718890894471,7.3472,136.11,136.05,6.1541]
[1718890894848,7.3466,136.12,136.06,7.3496]
[1718890895666,7.3484,136.09,136.05,6.1541]
[1718890895972,20.0,136.14,136.05,6.1541]
[1718890896274,7.3465,136.12,136.05,6.1541]
[1718890896575,7.346,136.13,136.05,6.1541]
[1718890896869,7.346,136.13,136.07,7.3489]
[1718890897578,5.81107229,136.17,136.05,28.2841]
[1718890897752,7.345,136.15,136.06,63.3729]
[1718890897954,7.3444,136.16,136.06,85.5029]
[1718890898259,7.3449,136.15,136.1,7.3473]
[1718890898576,7.3459,136.13,136.06,45.0]
[1718890898764,7.3452,136.15,136.07,45.0]
[1718890898964,18.358,136.18,136.09,7.3479]
[1718890899173,7.3454,136.14,136.09,7.3479]
[1718890899476,18.358,136.18,136.1,7.3474]
[1718890899673,20.0,136.17,136.08,7.3483]
[1718890899874,7.3457,136.14,136.09,7.348]
[1718890900041,7.3443,136.16,136.1,7.3471]
[1718890900251,7.3434,136.18,136.13,7.3458]
[1718890900444,7.3434,136.18,136.14,6.056]
[1718890900778,7.3439,136.17,136.11,13.4028]
[1718890900954,7.3439,136.17,136.12,7.3462]
[1718890901155,7.3439,136.17,136.11,13.4028]
[1718890901452,55.11171348,136.21,136.11,6.056]
[1718890901643,18.3595,136.17,136.11,6.056]
[1718890901969,18.3623,136.15,136.08,6.056]
[1718890902268,20.0,136.14,136.08,6.056]
[1718890902477,7.3465,136.12,136.08,6.056]
[1718890902644,20.0,136.14,136.08,6.056]
[1718890902847,20.0,136.15,136.08,6.056]
[1718890903276,7.345,136.15,136.08,6.056]
[1718890903450,20.0,136.14,136.08,6.056]
[1718890904077,7.3445,136.16,136.1,7.3472]
[1718890904560,27.25,136.19,136.12,7.3463]
[1718890904762,7.3435,136.18,136.12,7.3463]
[1718890905176,7.3437,136.17,136.12,7.3463]
[1718890905555,7.3443,136.16,136.11,7.3469]
[1718890905750,5.73171348,136.21,136.08,6.056]
[1718890905751,7.3449,136.15,136.08,6.056]
[1718890905956,7.3455,136.14,136.09,7.3477]
[1718890906150,7.346,136.13,136.08,13.4044]
[1718890906485,7.3456,136.14,136.08,13.4042]
[1718890906650,45.6067,136.19,136.08,6.056]
[1718890906855,20.0,136.18,136.09,20.0]
[1718890907374,27.3425,136.2,136.1,22.13]
[1718890907574,7.3428,136.19,136.14,23.1382]
[1718890907783,45.6014,136.23,136.14,23.1382]
[1718890907784,7.3407,136.23,136.17,7.3433]
[1718890907985,20.0,136.22,136.18,7.3431]
[1718890908167,20.0,136.22,136.17,7.3435]
[1718890908373,7.3407,136.23,136.17,7.3435]
[1718890908676,27.25,136.28,136.16,7.3441]
[1718890908677,18.3497,136.25,136.16,7.3441]
[1718890908882,67.7258,136.28,136.15,24.4671]
[1718890909079,7.3401,136.24,136.19,7.3425]
[1718890909288,27.25,136.27,136.19,7.3426]
[1718890909590,7.3402,136.24,136.19,7.3426]
[1718890909786,18.3458,136.28,136.19,7.3426]
[1718890910263,18.3458,136.28,136.16,18.3595]
[1718890910264,20.0,136.27,136.15,6.1061]
[1718890910468,20.0,136.28,136.16,20.0]
[1718890910796,18.3484,136.26,136.18,7.3429]
[1718890910972,7.3407,136.23,136.18,7.3429]
[1718890911173,7.3401,136.24,136.19,7.3426]
[1718890911790,7.3396,136.25,136.2,7.342]
[1718890912484,7.3401,136.24,136.19,7.3424]
[1718890912995,7.3406,136.23,136.18,7.3429]
[1718890913204,18.3472,136.27,136.16,38.3595]
[1718890913205,7.3399,136.25,136.16,38.3595]
[1718890913374,7.3399,136.25,136.2,7.3418]
[1718890913570,7.3399,136.25,136.19,7.3424]
[1718890914171,7.339,136.26,136.17,63.3582]
[1718890914396,20.0,136.25,136.21,7.3415]
[1718890914701,27.3396,136.25,136.2,7.3419]
[1718890914885,20.0,136.25,136.21,7.3415]
[1718890915201,27.3394,136.25,136.2,7.342]
[1718890915404,27.3394,136.25,136.17,63.3582]
[1718890915405,7.34,136.24,136.19,7.3424]
[1718890915595,27.3395,136.25,136.19,7.3424]
[1718890916101,27.3395,136.25,136.17,63.3582]
[1718890916292,27.3395,136.25,136.2,7.342]
[1718890916996,20.0,136.25,136.19,34.0547]
[1718890917182,7.3386,136.27,136.22,7.3407]
[1718890917385,20.0,136.26,136.22,7.341]
[1718890918087,20.0,136.29,136.2,7.3418]
[1718890918315,45.5949,136.28,136.19,23.0408]
[1718890918597,45.5949,136.28,136.19,15.6984]
[1718890918598,20.0,136.27,136.19,15.6984]
[1718890918807,7.3392,136.26,136.19,15.6984]
[1718890919017,27.3386,136.27,136.21,7.3413]
[1718890919379,27.3386,136.27,136.22,7.341]
[1718890920003,27.3386,136.27,136.21,7.3413]
[1718890920401,20.0,136.27,136.19,15.6984]
[1718890920595,20.0,136.27,136.2,7.342]
[1718890920800,27.3386,136.27,136.19,15.6984]
[1718890921105,27.3386,136.27,136.19,34.0547]
[1718890921106,20.0,136.27,136.19,34.0547]
[1718890921295,27.3387,136.27,136.21,7.3413]
[1718890921494,27.3387,136.27,136.22,7.341]
[1718890921710,27.3387,136.27,136.21,7.3413]
[1718890921711,7.339,136.26,136.21,7.3413]
[1718890922102,20.0,136.27,136.19,34.0547]
[1718890922302,27.3387,136.27,136.19,34.0547]
[1718890922490,7.339,136.26,136.21,7.3414]
[1718890922701,7.339,136.26,136.19,15.6984]
[1718890923012,20.0,136.27,136.22,7.341]
[1718890923209,20.0,136.27,136.23,7.3405]
[1718890924711,27.3386,136.27,136.22,7.3408]
[1718890925114,27.3386,136.27,136.21,13.5731]
[1718890925115,27.3388,136.27,136.21,13.5731]
[1718890925307,7.3392,136.26,136.21,13.5731]
[1718890925520,18.3481,136.26,136.19,15.6984]
[1718890925691,27.25,136.29,136.2,7.342]
[1718890925692,7.3396,136.25,136.2,7.342]
[1718890925891,7.3393,136.26,136.19,15.6984]
[1718890926214,34.5874,136.29,136.19,15.6984]
[1718890926397,7.3374,136.29,136.24,7.3397]
[1718890926711,7.3369,136.3,136.24,7.3397]
[1718890926913,7.3374,136.29,136.24,7.3397]
[1718890927314,7.3369,136.3,136.24,7.3397]
[1718890927807,5.8652355,136.34,136.25,6.5571]
[1718890928014,7.3354,136.33,136.27,7.3379]
[1718890928404,7.3357,136.32,136.27,7.3379]
[1718890928706,5.9928679,136.38,136.26,15.5747]
[1718890928900,18.3309,136.39,136.26,15.5747]
[1718890928901,20.0,136.37,136.27,45.0]
[1718890929217,7.3343,136.35,136.27,45.0]
[1718890929398,18.3309,136.39,136.27,45.0]
[1718890929399,7.3331,136.37,136.32,7.3356]
[1718890929595,18.3309,136.39,136.31,7.336]
[1718890929596,7.3335,136.36,136.31,7.336]
[1718890930097,7.3343,136.35,136.3,7.3366]
[1718890930298,253.4,136.45,136.27,72.25]
[1718890930488,21.98666652,136.67,136.33,7.335]
[1718890930489,7.3323,136.39,136.33,7.335]
[1718890930690,7.3323,136.39,136.34,7.3345]
[1718890931216,7.3322,136.39,136.34,7.3343]
[1718890931712,7.3338,136.36,136.29,6.0495]
[1718890932016,7.3331,136.37,136.31,7.3359]
[1718890932314,7.3331,136.37,136.32,7.3356]
[1718890932509,27.25,136.4,136.33,7.3347]
[1718890932811,7.3324,136.38,136.33,7.3348]
[1718890932993,7.3321,136.39,136.33,7.3348]
[1718890933189,7.331,136.41,136.36,7.3334]
[1718890933395,27.25,136.44,136.34,18.3364]
[1718890933590,7.331,136.41,136.32,18.338]
[1718890933815,45.573,136.44,136.32,18.338]
[1718890933985,7.3316,136.4,136.35,7.3336]
[1718890934384,45.573,136.44,136.29,28.1795]
[1718890934385,18.3255,136.43,136.29,28.1795]
[1718890934605,7.3324,136.38,136.33,7.3349]
[1718890935104,27.25,136.38,136.29,6.0495]
[1718890935406,51.63,136.47,136.17,9.979991]
[1718890935407,7.3376,136.29,136.25,6.2882]
[1718890935611,45.5894,136.32,136.25,6.2882]
[1718890935788,7.3376,136.29,136.25,6.2882]
[1718890936189,42.99239134,136.44,136.25,6.2882]
[1718890936190,22.13,136.37,136.25,6.2882]
[1718890936405,253.4,136.42,136.25,6.2882]
[1718890936406,7.337,136.3,136.25,6.2882]
[1718890936611,7.3378,136.28,136.25,6.2882]
[1718890936921,7.3375,136.29,136.25,6.2882]
[1718890937417,18.3402,136.32,136.25,6.2882]
[1718890937614,83.3418,136.31,136.22,15.5208]
[1718890937795,7.3382,136.28,136.22,15.5208]
[1718890938000,7.3382,136.28,136.23,7.3402]
[1718890938300,7.3385,136.27,136.22,15.5208]
[1718890938498,7.3398,136.25,136.22,15.5208]
[1718890938701,18.3444,136.29,136.22,15.5208]
[1718890938702,7.3389,136.26,136.22,15.5208]
[1718890938925,7.3387,136.27,136.22,22.8617]
[1718890939209,7.3389,136.26,136.22,15.5208]
[1718890939612,18.3444,136.29,136.21,6.2599]
[1718890939806,7.3385,136.27,136.22,7.3409]
[1718890940012,27.338,136.28,136.22,7.3409]
[1718890940209,20.0,136.28,136.18,16.2628]
[1718890940405,7.3379,136.28,136.18,16.2628]
[1718890940594,20.0,136.29,136.22,7.3408]
[1718890940595,7.3384,136.27,136.22,7.3408]
[1718890940918,7.3389,136.26,136.21,7.3412]
[1718890941915,7.3389,136.26,136.21,7.3415]
[1718890942621,7.3384,136.27,136.22,7.3409]
[1718890942805,7.3379,136.28,136.23,7.3404]
[1718890943128,7.3385,136.27,136.22,7.3407]
[1718890943817,20.0,136.29,136.19,18.3555]
[1718890943818,7.3389,136.26,136.21,7.3414]
[1718890943997,7.3386,136.27,136.22,7.341]
[1718890944194,7.3389,136.26,136.21,7.3413]
[1718890944414,7.3386,136.27,136.22,7.341]
[1718890945107,7.3381,136.28,136.23,7.3404]
[1718890945614,7.3375,136.29,136.24,7.3399]
[1718890945809,18.3394,136.32,136.2,18.3542]
[1718890945810,7.3378,136.28,136.23,7.3402]
[1718890946414,7.3383,136.27,136.22,7.3408]
[1718890946803,7.338,136.28,136.23,7.3404]
[1718890947327,18.3374,136.34,136.23,6.0478]
[1718890947628,7.38,136.44,136.23,6.0478]
[1718890947629,7.3372,136.29,136.24,7.3397]
[1718890947926,7.3378,136.28,136.23,13.388]
[1718890948426,7.3374,136.29,136.24,7.3399]
[1718890948807,45.21086795,136.37,136.25,16.2083]
[1718890948808,7.3363,136.31,136.25,16.2083]
[1718890949007,7.3362,136.31,136.25,16.2083]
[1718890949322,37.54056629,136.37,136.25,16.2083]
[1718890949323,5.80056629,136.37,136.25,16.2083]
[1718890949625,20.0,136.36,136.26,18.3472]
[1718890949826,7.3343,136.35,136.3,7.3364]
[1718890950435,7.3342,136.35,136.3,7.3364]
[1718890950732,7.3343,136.35,136.3,7.3367]
[1718890951633,7.3346,136.34,136.29,7.337]
[1718890951842,7.3355,136.33,136.28,13.6746]
[1718890952018,7.3346,136.34,136.29,7.3371]
[1718890952631,18.3338,136.37,136.29,7.3371]
[1718890952836,20.0,136.36,136.3,7.3366]
[1718890953038,7.3336,136.36,136.31,7.3359]
[1718890953543,7.3341,136.35,136.3,7.3365]
[1718890954212,7.3322,136.39,136.34,7.3342]
[1718890954407,20.0,136.41,136.36,7.3331]
[1718890954408,7.3312,136.41,136.36,7.3331]
[1718890954630,7.75433055,136.48,136.32,34.4512]
[1718890954831,18.3258,136.42,136.32,34.4512]
[1718890955046,7.3322,136.39,136.34,7.3343]
[1718890955528,7.3324,136.38,136.33,7.3349]
[1718890955717,18.3283,136.41,136.32,16.1121]
[1718890955907,7.3328,136.38,136.33,7.335]
[1718890956107,7.333,136.37,136.32,23.4475]
[1718890956511,7.3326,136.38,136.33,7.335]
[1718890956939,7.333,136.37,136.32,23.4475]
[1718890957214,7.3335,136.36,136.32,16.1121]
[1718890957425,7.3342,136.35,136.32,16.1121]
[1718890957753,18.3313,136.38,136.28,22.8421]
[1718890957754,18.3365,136.34,136.28,22.8421]
[1718890958042,7.3364,136.31,136.28,22.8421]
[1718890958235,7.3358,136.32,136.28,22.8421]
[1718890959012,63.3327,136.37,136.28,22.8421]
[1718890959214,7.3343,136.35,136.3,7.3363]
[1718890959424,7.3355,136.33,136.28,30.1794]
[1718890959613,7.3348,136.34,136.29,7.3371]
[1718890959931,57.68823796,136.4,136.28,22.8421]
[1718890959932,7.3363,136.31,136.28,22.8421]
[1718890960122,7.3358,136.32,136.28,22.8421]
[1718890960332,7.3352,136.33,136.28,30.1795]
[1718890960734,7.3352,136.33,136.28,22.8421]
[1718890960940,7.3362,136.31,136.28,22.8421]
[1718890961143,7.3359,136.32,136.28,22.8421]
[1718890961746,63.8591,136.36,136.28,22.8421]
[1718890961927,65.0,136.35,136.25,6.3071]
[1718890962125,22.13,136.31,136.21,22.0644]
[1718890962326,7.3396,136.25,136.21,22.0644]
[1718890962539,7.3391,136.26,136.21,22.0644]
[1718890962932,7.3391,136.26,136.21,29.4059]
[1718890964120,65.0,136.3,136.21,29.4059]
[1718890964121,65.0,136.3,136.21,22.0644]
[1718890964350,20.0,136.3,136.21,22.0644]
[1718890964527,7.3392,136.26,136.21,29.4059]
[1718890964846,38.3393,136.32,136.21,22.0644]
[1718890965224,38.3393,136.32,136.21,40.4172]
[1718890965425,7.3373,136.29,136.24,7.3397]
[1718890965825,7.3369,136.3,136.25,7.3394]
[1718890966021,20.0,136.32,136.21,22.0644]
[1718890966231,7.3367,136.3,136.25,7.3392]
[1718890966748,45.0,136.31,136.21,22.0644]
[1718890966931,45.0,136.31,136.22,20.0]
[1718890967123,7.3376,136.29,136.24,7.3398]
[1718890967323,45.0,136.31,136.25,7.3392]
[1718890967525,7.337,136.3,136.25,7.3392]
[1718890967948,45.0,136.31,136.21,22.0644]
[1718890968257,7.3381,136.28,136.23,7.3404]
[1718890969728,7.3375,136.29,136.24,7.3399]
[1718890970133,7.3372,136.29,136.24,7.3397]
[1718890970960,20.0,136.33,136.25,18.3482]
[1718890971266,5.82168739,136.36,136.25,18.3482]
[1718890971441,20.0,136.35,136.25,18.3482]
[1718890971756,7.3353,136.33,136.28,7.3378]
[1718890971962,7.3358,136.32,136.27,7.3382]
[1718890972134,68.4104,136.39,136.26,7.3387]
[1718890972135,7.3366,136.31,136.26,7.3387]
[1718890972326,18.3364,136.35,136.23,18.3511]
[1718890972533,7.3354,136.33,136.28,7.3378]
[1718890972936,7.3362,136.31,136.26,7.3386]
[1718890973342,7.3367,136.3,136.25,7.3391]
[1718890973760,7.3363,136.31,136.26,7.3387]
[1718890974759,7.3367,136.3,136.26,7.3387]
[1718890974957,7.3364,136.31,136.26,7.3387]
[1718890975362,7.3369,136.3,136.25,7.3391]
[1718890975552,7.338,136.28,136.23,7.34]
[1718890975750,7.337,136.3,136.25,7.3393]
[1718890975947,7.3373,136.29,136.24,7.3397]
[1718890976347,7.3352,136.33,136.28,7.3374]
[1718890976537,7.3348,136.34,136.29,7.3372]
[1718890976742,20.0,136.33,136.29,7.337]
[1718890976960,37.51092204,136.39,136.28,6.077]
[1718890977259,7.3352,136.33,136.28,13.4143]
[1718890977646,7.3348,136.34,136.29,7.3372]
[1718890978255,7.3365,136.31,136.28,6.077]
[1718890978463,7.3365,136.31,136.27,16.2035]
[1718890978953,7.3365,136.31,136.27,23.5418]
[1718890979269,7.3358,136.32,136.27,23.5418]
[1718890979441,7.3352,136.33,136.28,7.3376]
[1718890980368,7.3352,136.33,136.27,16.2035]
[1718890980369,7.3337,136.36,136.31,7.3361]
[1718890980735,18.3339,136.36,136.27,16.2035]
[1718890980957,27.89092204,136.39,136.27,16.2035]
[1718890980958,7.3353,136.33,136.28,7.3377]
[1718890981260,7.3357,136.32,136.27,23.5416]
[1718890981972,7.337,136.3,136.27,16.2035]
[1718890982144,7.3351,136.33,136.28,7.3375]
[1718890982345,7.3356,136.32,136.28,7.3375]
[1718890982552,7.3356,136.32,136.27,23.5416]
[1718890982965,7.3342,136.35,136.3,7.3363]
[1718890984153,18.3286,136.4,136.31,1.46451542]
[1718890984352,388.0,136.5,136.31,1.46451542]
[1718890984558,20.0,136.45,136.32,16.0983]
[1718890984783,31.75,136.43,136.32,16.0983]
[1718890984954,7.3348,136.34,136.32,16.0983]
[1718890985153,18.3337,136.37,136.3,6.6436]
[1718890985452,7.3358,136.32,136.3,6.6436]
[1718890986281,7.3348,136.34,136.3,6.6436]
[1718890986512,7.334,136.35,136.3,13.9801]
[1718890986677,36.6477,136.44,136.3,6.6436]
[1718890986877,7.333,136.37,136.32,7.3353]
[1718890987056,7.3335,136.36,136.31,23.3261]
[1718890987251,7.3355,136.33,136.31,15.9902]
[1718890987776,7.3348,136.34,136.31,15.9902]
[1718890987981,7.3343,136.35,136.31,15.9902]
[1718890988469,7.3336,136.36,136.31,23.3262]
[1718890989052,27.18,136.37,136.3,6.6436]
[1718890989253,65.0,136.36,136.3,6.6436]
[1718890989450,7.3354,136.33,136.3,6.6436]
[1718890989981,7.3366,136.31,136.27,15.2945]
[1718890990155,7.3362,136.31,136.27,15.2945]
[1718890990360,65.0,136.36,136.27,22.6328]
[1718890990361,7.3359,136.32,136.27,22.6328]
[1718890990558,20.0,136.36,136.27,15.2945]
[1718890990857,7.3341,136.35,136.3,7.3364]
[1718890991052,7.3346,136.34,136.3,7.3364]
[1718890991258,7.3337,136.36,136.32,7.3356]
[1718890991559,45.5123,136.38,136.31,7.3361]
[1718890991762,7.3337,136.36,136.31,7.3361]
[1718890991961,7.334,136.35,136.3,7.3365]
[1718890992177,7.3335,136.36,136.31,7.3358]
[1718890992482,7.3341,136.35,136.31,7.3358]
[1718890992678,7.3343,136.35,136.3,7.3366]
[1718890993094,7.3347,136.34,136.29,7.337]
[1718890993379,7.3343,136.35,136.3,7.3367]
[1718890993581,7.3346,136.34,136.3,7.3367]
[1718890993773,7.3342,136.35,136.3,7.3365]
[1718890994078,7.3346,136.34,136.29,7.337]
[1718890994278,7.3341,136.35,136.3,7.3367]
[1718890994670,7.3337,136.36,136.31,7.3361]
[1718890994971,7.3327,136.38,136.33,23.9517]
[1718890996380,45.5081,136.41,136.33,23.9517]
[1718890996381,45.5081,136.41,136.33,16.6169]
[1718890996564,36.6366,136.48,136.37,7.3326]
[1718890996770,7.33,136.43,136.37,7.3326]
[1718890996964,7.3303,136.42,136.37,7.3327]
[1718890997171,7.3314,136.4,136.35,7.3337]
[1718890998181,7.3319,136.39,136.34,13.4417]
[1718890998373,7.3319,136.39,136.35,7.334]
[1718890998671,18.3297,136.4,136.34,6.1073]
[1718890998870,7.3328,136.38,136.34,6.1073]
[1718890999181,7.3321,136.39,136.34,13.4418]
[1718890999484,18.3285,136.4,136.34,6.1073]
[1718890999662,45.0,136.42,136.34,13.4415]
[1718890999864,7.3323,136.39,136.34,13.4415]
[1718891000285,6.6716,136.4,136.35,7.334]
[1718891000676,6.6716,136.4,136.35,9.98057847]
[1718891000878,18.3218,136.45,136.36,2.64638438]
[1718891001087,7.33,136.43,136.36,20.98018438]
[1718891001291,7.33,136.43,136.38,7.3323]
[1718891001591,7.3298,136.43,136.38,7.3323]
[1718891002193,7.3303,136.42,136.37,7.3327]
[1718891002380,7.3296,136.44,136.38,2.65135746]
[1718891002569,7.3298,136.43,136.39,22.5858]
[1718891002770,7.3293,136.44,136.39,22.5858]
[1718891004800,7.3304,136.42,136.39,15.2541]
[1718891005998,18.3193,136.47,136.39,15.2541]
[1718891006179,7.3298,136.43,136.39,15.2541]
[1718891007094,7.3298,136.43,136.39,22.5859]
[1718891008281,7.3298,136.43,136.39,15.2541]
[1718891009103,7.3303,136.42,136.39,15.2541]
[1718891009300,7.3293,136.44,136.39,15.2541]
[1718891009596,7.3279,136.47,136.42,7.3299]
[1718891010193,7.3283,136.46,136.4,6.4857]
[1718891010399,7.3285,136.46,136.41,7.3306]
[1718891010789,7.3287,136.45,136.4,13.8168]
[1718891010984,27.18,136.5,136.4,13.8168]
[1718891010985,7.3292,136.44,136.4,6.4857]
[1718891011292,7.3284,136.46,136.41,7.3307]
[1718891011499,7.3283,136.46,136.41,7.3306]
[1718891012090,7.329,136.45,136.4,13.817]
[1718891012406,7.3283,136.46,136.42,7.3302]
[1718891012605,7.3278,136.47,136.42,7.3302]
[1718891013098,18.3175,136.49,136.42,7.3302]
[1718891013099,7.3281,136.46,136.42,7.3302]
[1718891013882,7.329,136.45,136.4,6.4857]
[1718891014092,7.329,136.45,136.4,13.8167]
[1718891014293,7.3283,136.46,136.41,7.3308]
[1718891014491,7.3287,136.45,136.41,7.3308]
[1718891014691,7.3287,136.45,136.4,13.8168]
[1718891015397,36.6188,136.55,136.41,22.559]
[1718891015698,5.84099411,136.55,136.46,7.3278]
[1718891015897,27.18,136.55,136.48,7.327]
[1718891016202,27.18,136.56,136.5,7.3259]
[1718891016499,7.3258,136.51,136.46,7.3278]
[1718891016996,7.326,136.5,136.45,7.3284]
[1718891017196,18.313,136.52,136.43,21.8385]
[1718891017376,7.3265,136.49,136.44,7.3289]
[1718891017582,7.3262,136.5,136.45,7.3285]
[1718891018498,7.3265,136.49,136.45,7.3285]
[1718891018997,27.18,136.54,136.32,7.3354]
[1718891018998,22.13,136.45,136.32,7.3354]
[1718891019203,45.5078,136.41,136.32,7.3354]
[1718891019404,45.5071,136.41,136.29,22.424]
[1718891019589,7.332,136.39,136.33,7.3347]
[1718891019907,34.511,136.41,136.35,7.3338]
[1718891020104,7.331,136.41,136.36,7.3334]
[1718891020487,7.331,136.41,136.31,18.3392]
[1718891020488,7.331,136.41,136.35,7.3338]
[1718891020696,7.331,136.41,136.33,24.6699]
[1718891020903,45.5042,136.44,136.33,6.3322]
[1718891021106,83.3256,136.43,136.33,13.667]
[1718891021485,7.333,136.37,136.33,6.3322]
[1718891021684,27.18,136.41,136.33,6.3322]
[1718891021891,7.3313,136.41,136.33,6.3322]
[1718891022092,7.3317,136.4,136.34,7.3343]
[1718891022603,38.3245,136.43,136.33,6.3322]
[1718891022604,7.3335,136.37,136.33,6.3322]
[1718891022986,7.3346,136.34,136.29,22.2004]
[1718891023310,7.3352,136.33,136.29,22.2004]
[1718891023810,45.5123,136.38,136.29,22.2004]
[1718891024111,7.3349,136.34,136.29,29.5375]
[1718891024907,7.3342,136.35,136.29,29.5373]
[1718891025407,7.3346,136.34,136.29,29.5373]
[1718891026291,45.0,136.33,136.29,6.1307]
[1718891026588,7.3365,136.31,136.26,13.4519]
[1718891027190,7.3359,136.32,136.26,13.4519]
[1718891027608,7.3359,136.32,136.27,7.3383]
[1718891027891,7.3362,136.31,136.26,6.1134]
[1718891028095,7.3367,136.3,136.26,6.1134]
[1718891028304,7.3368,136.3,136.26,6.1134]
[1718891028506,7.3379,136.28,136.25,16.3257]
[1718891028704,18.3403,136.32,136.25,16.3257]
[1718891028909,7.3373,136.29,136.25,16.3257]
[1718891030302,18.3403,136.32,136.25,16.3257]
[1718891030490,7.337,136.3,136.25,23.665]
[1718891031001,7.3343,136.35,136.3,7.3364]
[1718891031204,7.3343,136.35,136.25,16.3257]
[1718891031205,7.3353,136.33,136.28,7.3377]
[1718891034225,18.3325,136.37,136.25,16.3257]
[1718891034518,7.3351,136.33,136.29,7.3372]
[1718891034690,18.3325,136.37,136.3,7.3366]
[1718891034691,7.3343,136.35,136.3,7.3366]
[1718891035996,7.3346,136.34,136.3,7.3366]
[1718891036195,7.3346,136.34,136.29,7.337]
[1718891036611,7.3343,136.35,136.3,7.3366]
[1718891036816,7.3343,136.35,136.31,7.3361]
[1718891036990,7.333,136.37,136.31,15.3088]
[1718891037193,18.3296,136.4,136.32,7.3354]
[1718891037496,7.3341,136.35,136.31,15.3088]
[1718891037999,7.3336,136.36,136.31,22.6449]
[1718891038198,7.3336,136.36,136.31,22.6448]
[1718891038695,7.3341,136.35,136.31,22.6448]
[1718891038899,7.333,136.37,136.32,7.3353]
[1718891039112,7.3332,136.37,136.32,7.3353]
[1718891040414,7.3336,136.36,136.32,7.3356]
[1718891040616,18.3271,136.41,136.33,7.3349]
[1718891040818,18.3271,136.41,136.32,7.3354]
[1718891040819,7.333,136.37,136.32,7.3354]
[1718891040995,65.0,136.4,136.31,15.3088]
[1718891041197,7.3343,136.35,136.31,15.3088]
[1718891042005,7.3337,136.36,136.31,22.6448]
[1718891042204,7.3341,136.35,136.31,22.6448]
[1718891042405,7.3336,136.36,136.31,22.6448]
[1718891042608,7.3336,136.36,136.31,22.6447]
[1718891043202,7.3342,136.35,136.31,15.3088]
[1718891043428,7.3342,136.35,136.31,22.6449]
[1718891043927,7.3337,136.36,136.31,22.6449]
[1718891045826,7.3337,136.36,136.32,7.3356]
[1718891046034,65.0,136.4,136.34,7.3345]
[1718891046221,7.3317,136.4,136.35,7.3338]
[1718891046433,7.332,136.39,136.34,7.3343]
[1718891046617,7.332,136.39,136.31,33.6483]
[1718891047028,7.332,136.39,136.34,7.3344]
[1718891047834,7.3335,136.36,136.31,22.6447]
[1718891048208,7.3332,136.37,136.32,7.3356]
[1718891048608,7.3335,136.36,136.32,7.3356]
[1718891049538,7.333,136.37,136.32,7.3356]
[1718891049723,7.333,136.37,136.32,7.3354]
[1718891050123,34.5115,136.4,136.31,15.3088]
[1718891050311,20.0,136.39,136.35,7.3335]
[1718891050521,27.3319,136.39,136.35,7.3335]